bitfinex/quotes_SOLUSD_20250531
["timestamp","ask_amount","ask_price","bid_price","bid_amount"]
[1748705661626,19.01558505,156.57,156.52,65.16016973]
[1748705661829,0.28432314,156.57,156.52,65.16016973]
[1748705662636,0.28432314,156.57,156.53,18.73126191]
[1748705662835,0.28432314,156.57,156.54,18.73126191]
[1748705663157,10.68,156.58,156.56,18.73126191]
[1748705663344,10.68,156.58,156.57,44.73126191]
[1748705663556,10.68,156.58,156.57,26.0]
[1748705663735,10.68,156.58,156.57,44.73126191]
[1748705664638,10.68,156.58,156.57,51.11818149]
[1748705665249,10.68,156.58,156.56,25.1185141]
[1748705666934,10.68,156.58,156.57,18.73126191]
[1748705667462,10.68,156.58,156.56,25.1185141]
[1748705667761,10.68,156.58,156.55,26.0]
[1748705667762,10.68,156.58,156.55,51.11894056]
[1748705668459,10.68,156.58,156.55,26.0]
[1748705668460,0.14216157,156.57,156.55,26.0]
[1748705669259,0.28432314,156.57,156.53,51.11970436]
[1748705674374,19.01558505,156.57,156.53,32.38844245]
[1748705674585,19.01558505,156.57,156.53,26.0]
[1748705675360,19.01558505,156.57,156.53,32.38845106]
[1748705675565,0.28432314,156.57,156.53,51.11971297]
[1748705676878,25.40258228,156.57,156.53,26.0]
[1748705677084,25.40258228,156.57,156.5,6.38977635]
[1748705677085,0.28432314,156.55,156.5,6.38977635]
[1748705677263,0.28432314,156.55,156.52,18.73126191]
[1748705677874,0.28432314,156.55,156.52,25.11984258]
[1748705679192,10.68,156.58,156.54,44.73126191]
[1748705679483,10.68,156.58,156.57,18.73126191]
[1748705679693,10.68,156.58,156.54,26.0]
[1748705679880,10.68,156.58,156.56,18.73126191]
[1748705681365,10.68,156.58,156.55,25.11863324]
[1748705681566,10.68,156.58,156.55,6.38737133]
[1748705681973,10.68,156.58,156.55,25.11863324]
[1748705683093,10.68,156.58,156.56,18.73126191]
[1748705683273,10.68,156.58,156.57,25.11818149]
[1748705684075,15.89566182,156.61,156.57,25.11818149]
[1748705684282,0.14216157,156.6,156.57,25.11818149]
[1748705684483,0.14216157,156.6,156.57,6.38691958]
[1748705684675,0.14216157,156.6,156.57,25.11818149]
[1748705687103,0.28432314,156.6,156.57,6.38691958]
[1748705687395,19.01558505,156.6,156.55,25.11898226]
[1748705687594,0.14216157,156.58,156.55,6.38772035]
[1748705687779,0.14216157,156.58,156.55,25.11898226]
[1748705690289,10.66,156.59,156.56,18.73126191]
[1748705690679,10.66,156.59,156.55,25.11898226]
[1748705691182,19.01558505,156.58,156.52,26.0]
[1748705691384,0.28432314,156.58,156.54,18.73126191]
[1748705692124,0.28432314,156.58,156.54,11.47142768]
[1748705693075,0.28432314,156.58,156.54,17.85918466]
[1748705693538,11.75575082,156.58,156.54,6.38775698]
[1748705694429,10.66,156.57,156.54,6.38775698]
[1748705695219,10.66,156.57,156.53,17.85995502]
[1748705695417,10.66,156.57,156.53,6.38852734]
[1748705695621,10.66,156.57,156.56,37.47142768]
[1748705695841,10.66,156.6,156.56,37.47142768]
[1748705696141,10.66,156.6,156.59,11.47142768]
[1748705696437,10.66,156.6,156.58,11.47142768]
[1748705697556,10.66,156.6,156.59,17.85753151]
[1748705699028,10.66,156.6,156.59,6.38610383]
[1748705699354,10.66,156.6,156.58,17.85782709]
[1748705700342,10.66,156.6,156.57,17.8582206]
[1748705704257,0.28432314,156.59,156.56,26.0]
[1748705704460,10.66,156.6,156.58,11.47142768]
[1748705706160,10.66,156.6,156.58,17.85788082]
[1748705706675,10.66,156.6,156.59,11.47142768]
[1748705707359,10.66,156.6,156.59,17.85753151]
[1748705708570,10.66,156.6,156.59,11.47142768]
[1748705708774,0.14216157,156.59,156.49,87.8]
[1748705708971,0.14216157,156.59,156.51,11.47142768]
[1748705708972,0.14216157,156.58,156.51,11.47142768]
[1748705709164,0.14216157,156.55,156.52,26.0]
[1748705709573,0.14216157,156.55,156.52,32.3889365]
[1748705711282,0.14216157,156.55,156.52,26.0]
[1748705711666,0.14216157,156.55,156.52,32.38883596]
[1748705711869,0.14216157,156.55,156.53,26.0]
[1748705714986,11.61358925,156.54,156.49,18.64964886]
[1748705715172,22.25358925,156.54,156.49,51.03983353]
[1748705715376,10.78216157,156.54,156.5,11.47142768]
[1748705715593,10.78216157,156.54,156.49,51.03983353]
[1748705715594,10.78216157,156.54,156.49,62.51126121]
[1748705715765,11.47142768,156.53,156.49,32.39018467]
[1748705716091,0.14216157,156.52,156.49,32.39018467]
[1748705716268,10.64,156.54,156.49,43.86161235]
[1748705716469,0.14216157,156.53,156.5,11.47142768]
[1748705716665,0.14216157,156.53,156.51,6.38936809]
[1748705716876,0.14216157,156.53,156.5,11.47142768]
[1748705716877,0.14216157,156.53,156.5,6.38969446]
[1748705717076,11.47142768,156.52,156.49,32.39002997]
[1748705717287,11.75575082,156.53,156.49,32.39002997]
[1748705718893,11.61358925,156.53,156.49,32.39002997]
[1748705719969,10.64,156.54,156.52,26.0]
[1748705720696,10.64,156.54,156.53,26.0]
[1748705721282,22.11142768,156.54,156.5,32.38967573]
[1748705721484,11.47142768,156.53,156.5,32.38967573]
[1748705721878,22.11142768,156.54,156.5,32.38967573]
[1748705722984,11.47142768,156.53,156.5,32.38967573]
[1748705723196,11.47142768,156.52,156.5,32.38967573]
[1748705728391,0.14216157,156.5,156.45,18.64964886]
[1748705728587,11.47142768,156.51,156.44,6.39222705]
[1748705728588,11.47142768,156.49,156.44,6.39222705]
[1748705728904,11.47142768,156.47,156.44,6.39222705]
[1748705729102,22.25358925,156.48,156.44,32.39222705]
[1748705730597,11.47142768,156.47,156.44,32.39222705]
[1748705730803,11.47142768,156.46,156.44,26.0]
[1748705731048,11.47142768,156.46,156.44,32.39209822]
[1748705731233,11.47142768,156.47,156.44,32.39209822]
[1748705731412,11.47142768,156.46,156.44,32.39209822]
[1748705731618,11.61358925,156.45,156.43,2.53848853]
[1748705732052,11.47142768,156.44,156.43,28.53848853]
[1748705732953,11.61358925,156.45,156.43,34.93112421]
[1748705734524,11.61358925,156.45,156.43,28.53848853]
[1748705734745,11.47142768,156.44,156.43,2.53848853]
[1748705734944,11.75575082,156.44,156.43,2.53848853]
[1748705735654,11.47142768,156.45,156.43,2.53848853]
[1748705735856,11.47142768,156.45,156.43,8.93112421]
[1748705736235,0.14216157,156.46,156.43,8.93112421]
[1748705736457,10.64,156.48,156.44,37.47142768]
[1748705736960,10.64,156.48,156.45,6.39181847]
[1748705738765,10.64,156.48,156.45,22.37136465]
[1748705738956,10.64,156.48,156.45,33.84279233]
[1748705739132,22.11142768,156.48,156.45,6.39181847]
[1748705739963,0.14216157,156.47,156.45,6.39181847]
[1748705742544,10.64,156.48,156.45,17.86324615]
[1748705742945,8.224,156.52,156.47,26.0]
[1748705743143,10.64,156.52,156.48,37.47142768]
[1748705743337,10.64,156.52,156.49,30.12107654]
[1748705743662,10.64,156.52,156.5,11.47142768]
[1748705744038,10.64,156.52,156.51,6.38936809]
[1748705744664,10.64,156.52,156.51,17.86079577]
[1748705744965,10.64,156.57,156.54,26.0]
[1748705745163,10.64,156.57,156.56,26.0]
[1748705745860,10.64,156.57,156.54,26.0]
[1748705746071,10.64,156.57,156.55,6.38773554]
[1748705746440,10.64,156.57,156.54,32.38804769]
[1748705748157,10.64,156.57,156.54,43.85947537]
[1748705748666,0.14216157,156.56,156.54,26.0]
[1748705749548,0.14216157,156.56,156.53,6.38850733]
[1748705750266,102.62,156.61,156.57,26.0]
[1748705750471,0.14216157,156.6,156.57,26.0]
[1748705750767,0.28432314,156.6,156.55,43.85875918]
[1748705751143,0.28432314,156.6,156.56,11.47142768]
[1748705752873,0.14216157,156.6,156.57,6.38691958]
[1748705753040,0.14216157,156.6,156.57,17.85834726]
[1748705753654,102.62,156.61,156.57,17.85834726]
[1748705754369,102.62,156.61,156.58,37.47142768]
[1748705754579,102.62,156.61,156.58,26.0]
[1748705754752,102.62,156.61,156.59,6.38610383]
[1748705756244,102.62,156.61,156.59,26.0]
[1748705756843,0.14216157,156.6,156.56,11.47142768]
[1748705757044,11.75575082,156.6,156.57,26.0]
[1748705757262,11.75575082,156.6,156.56,26.0]
[1748705759053,11.61358925,156.6,156.57,6.38691958]
[1748705759375,0.14216157,156.6,156.57,6.38691958]
[1748705761350,0.14216157,156.6,156.57,17.85834726]
[1748705761664,0.14216157,156.6,156.57,43.85834726]
[1748705762178,0.14216157,156.6,156.57,32.38691958]
[1748705763177,10.64,156.61,156.57,43.85834726]
[1748705770659,9.64,156.61,156.57,43.85834726]
[1748705772256,9.64,156.61,156.59,6.38610383]
[1748705772582,9.64,156.61,156.59,17.85753151]
[1748705775060,9.64,156.61,156.59,6.38610383]
[1748705779082,10.62,156.63,156.6,11.47142768]
[1748705780599,10.62,156.63,156.61,11.47142768]
[1748705780896,10.62,156.63,156.62,6.3848806]
[1748705781688,10.62,156.63,156.61,6.38512522]
[1748705784370,10.62,156.63,156.62,11.47142768]
[1748705784960,11.63068377,156.65,156.64,26.0]
[1748705785183,10.62,156.66,156.64,56.12107654]
[1748705785388,10.62,156.66,156.65,11.47142768]
[1748705786289,10.62,156.66,156.65,17.85508551]
[1748705788119,10.62,156.66,156.65,6.38365783]
[1748705788912,10.62,156.66,156.64,6.38402627]
[1748705789222,10.62,156.66,156.65,26.0]
[1748705789521,10.62,156.66,156.64,6.38402627]
[1748705789722,10.62,156.66,156.63,26.0]
[1748705790022,22.09142768,156.66,156.62,26.0]
[1748705790596,22.09142768,156.66,156.62,32.38473277]
[1748705791613,22.09142768,156.66,156.63,26.0]
[1748705791614,11.61358925,156.65,156.63,26.0]
[1748705791793,11.47142768,156.64,156.6,26.0]
[1748705791987,11.47142768,156.64,156.61,26.0]
[1748705791988,0.14216157,156.63,156.61,26.0]
[1748705792400,11.47142768,156.62,156.52,95.5663]
[1748705792591,11.47142768,156.61,156.53,18.64964886]
[1748705792797,10.6,156.6,156.56,11.47142768]
[1748705792989,10.6,156.6,156.57,26.0]
[1748705793608,10.6,156.6,156.57,32.38660953]
[1748705793889,10.6,156.6,156.57,6.38660953]
[1748705794423,10.6,156.6,156.57,32.38660953]
[1748705795018,13.34405992,156.66,156.6,18.64964886]
[1748705795226,10.6,156.65,156.62,11.47142768]
[1748705796510,0.14216157,156.64,156.61,6.38528829]
[1748705796701,11.47142768,156.63,156.58,77.35142768]
[1748705797105,11.75575082,156.64,156.59,17.85753151]
[1748705797301,0.28432314,156.64,156.59,22.05753151]
[1748705797712,11.75575082,156.64,156.59,22.05753151]
[1748705798016,11.75575082,156.64,156.59,10.58610383]
[1748705798913,0.14216157,156.61,156.59,4.2]
[1748705799227,0.14216157,156.59,156.57,26.0]
[1748705799432,11.61358925,156.59,156.57,26.0]
[1748705799734,11.61358925,156.59,156.53,30.12107654]
[1748705799887,11.47142768,156.57,156.53,18.64964886]
[1748705800091,11.47142768,156.57,156.53,32.38855171]
[1748705800325,11.47142768,156.57,156.53,6.38855171]
[1748705801040,0.14216157,156.56,156.53,6.38855171]
[1748705801389,11.75575082,156.56,156.52,32.38880145]
[1748705802310,11.75575082,156.56,156.53,4.2]
[1748705802513,0.14216157,156.54,156.53,4.2]
[1748705802723,22.21358925,156.54,156.53,4.2]
[1748705802936,22.21358925,156.54,156.5,6.3896927]
[1748705803231,0.14216157,156.52,156.49,6.3900711]
[1748705803613,0.14216157,156.52,156.49,32.3900711]
[1748705805136,10.6,156.54,156.51,11.47142768]
[1748705805347,10.6,156.54,156.53,37.47142768]
[1748705805518,10.6,156.55,156.53,37.47142768]
[1748705806082,10.6,156.55,156.53,26.0]
[1748705806434,10.6,156.55,156.53,37.47142768]
[1748705806822,10.6,156.55,156.54,11.47142768]
[1748705807029,10.6,156.55,156.54,6.3881436]
[1748705807229,10.6,156.55,156.54,10.5881436]
[1748705808451,10.6,156.55,156.54,4.2]
[1748705809946,10.6,156.55,156.48,46.09680526]
[1748705809947,0.28432314,156.54,156.48,46.09680526]
[1748705810243,11.75575082,156.54,156.51,26.0]
[1748705810848,11.47142768,156.53,156.49,32.39018467]
[1748705811552,0.14216157,156.52,156.49,32.39018467]
[1748705812742,0.14216157,156.52,156.44,6.39222705]
[1748705812743,11.61358925,156.5,156.44,6.39222705]
[1748705812941,10.6,156.49,156.45,44.64964886]
[1748705813840,22.07142768,156.49,156.45,26.0]
[1748705814223,0.14216157,156.48,156.44,6.39222705]
[1748705814436,11.61358925,156.48,156.44,6.39222705]
[1748705814645,11.61358925,156.48,156.44,32.39222705]
[1748705815068,0.14216157,156.48,156.44,32.39222705]
[1748705815219,10.6,156.49,156.48,26.0]
[1748705816650,10.6,156.49,156.48,32.39059304]
[1748705817225,10.6,156.51,156.48,62.51166958]
[1748705817429,10.6,156.51,156.49,11.47142768]
[1748705817846,10.6,156.51,156.48,105.59166958]
[1748705818251,10.6,156.51,156.5,11.47142768]
[1748705818423,10.6,156.53,156.5,11.47142768]
[1748705818627,10.6,156.53,156.51,6.38936809]
[1748705820953,10.6,156.53,156.52,26.0]
[1748705821141,10.6,156.53,156.52,37.47142768]
[1748705822150,10.6,156.53,156.52,43.86038755]
[1748705823855,10.6,156.53,156.52,32.38895987]
[1748705824052,10.58,156.55,156.52,32.38895987]
[1748705824555,22.19358925,156.55,156.51,6.38921638]
[1748705824761,11.47142768,156.54,156.51,6.38921638]
[1748705825056,10.58,156.55,156.51,6.38921638]
[1748705825363,10.58,156.55,156.52,11.47142768]
[1748705826155,11.47142768,156.57,156.53,6.38855171]
[1748705826356,10.58,156.56,156.53,6.38855171]
[1748705826746,10.58,156.58,156.55,11.47142768]
[1748705827059,10.58,156.58,156.56,11.47142768]
[1748705827241,91.94,156.59,156.57,30.12107654]
[1748705827436,91.94,156.59,156.58,11.47142768]
[1748705827631,10.58,156.6,156.56,26.0]
[1748705827840,11.47142768,156.58,156.56,26.0]
[1748705828357,11.47142768,156.58,156.55,6.38768068]
[1748705829558,10.58,156.6,156.55,6.38768068]
[1748705829740,10.58,156.6,156.58,26.0]
[1748705829941,10.58,156.6,156.58,37.47142768]
[1748705830453,10.58,156.6,156.59,6.38610383]
[1748705830959,10.58,156.6,156.59,25.03575269]
[1748705831352,0.14216157,156.58,156.54,6.38805153]
[1748705831548,11.47142768,156.57,156.54,6.38805153]
[1748705831863,11.47142768,156.57,156.54,32.38805153]
[1748705832064,11.47142768,156.56,156.54,32.38805153]
[1748705832362,11.47142768,156.56,156.54,26.0]
[1748705833773,11.47142768,156.56,156.55,1.6]
[1748705834138,0.14216157,156.58,156.55,1.6]
[1748705834342,22.05142768,156.6,156.55,1.6]
[1748705834542,11.47142768,156.59,156.55,1.6]
[1748705834745,11.47142768,156.57,156.56,26.0]
[1748705835042,11.47142768,156.57,156.55,1.6]
[1748705835547,0.28432314,156.59,156.55,1.6]
[1748705835955,18.696632,156.57,156.55,1.6]
[1748705837069,18.98095514,156.59,156.55,7.98771354]
[1748705837361,10.58,156.6,156.58,26.0]
[1748705837569,6.3537,156.64,156.59,44.696632]
[1748705837738,10.58,156.64,156.59,44.696632]
[1748705838446,29.276632,156.64,156.59,44.696632]
[1748705838646,29.276632,156.64,156.6,26.0]
[1748705838852,29.276632,156.64,156.61,6.38528829]
[1748705840072,10.58,156.64,156.61,6.38528829]
[1748705841078,10.58,156.64,156.62,37.34628086]
[1748705841368,29.276632,156.67,156.62,37.34628086]
[1748705842055,10.58,156.67,156.65,26.0]
[1748705842256,10.58,156.67,156.65,44.696632]
[1748705842461,10.58,156.67,156.66,18.696632]
[1748705842662,10.58,156.67,156.65,44.696632]
[1748705842973,10.58,156.67,156.66,6.38325035]
[1748705844163,10.58,156.67,156.66,7.08325035]
[1748705845479,10.58,156.67,156.66,44.42953121]
[1748705845681,91.98,156.69,156.67,18.64964886]
[1748705846047,29.276632,156.71,156.67,18.64964886]
[1748705846248,10.58,156.71,156.67,37.34628086]
[1748705846452,35.65785177,156.71,156.66,7.08325035]
[1748705846771,18.696632,156.7,156.66,25.73289921]
[1748705846950,29.276632,156.71,156.66,25.73289921]
[1748705847154,29.276632,156.71,156.66,44.42953121]
[1748705848067,29.276632,156.71,156.67,18.64964886]
[1748705848377,10.58,156.71,156.67,18.64964886]
[1748705848749,18.696632,156.7,156.66,25.73289921]
[1748705850860,18.696632,156.7,156.66,0.7]
[1748705851068,18.696632,156.69,156.66,0.7]
[1748705851794,18.696632,156.68,156.66,0.7]
[1748705852298,18.696632,156.69,156.66,0.7]
[1748705852582,0.28432314,156.67,156.66,0.7]
[1748705853278,18.696632,156.69,156.66,0.7]
[1748705853483,18.696632,156.69,156.66,7.08321884]
[1748705856888,18.98095514,156.67,156.66,0.7]
[1748705857463,20.54215514,156.67,156.66,0.7]
[1748705857670,27.02065514,156.67,156.66,0.7]
[1748705857878,8.32402314,156.67,156.66,0.7]
[1748705858093,8.32402314,156.67,156.63,26.0]
[1748705858094,19.78562118,156.67,156.63,26.0]
[1748705858388,11.46159804,156.65,156.63,32.38446627]
[1748705858683,11.46159804,156.64,156.63,32.38446627]
[1748705858882,11.46159804,156.64,156.62,6.38472862]
[1748705860186,18.68039541,156.63,156.62,26.0]
[1748705860386,18.68039541,156.64,156.62,26.0]
[1748705860591,18.96471855,156.64,156.62,26.0]
[1748705861092,18.96471855,156.64,156.61,32.3851668]
[1748705863520,18.68039541,156.63,156.61,32.3851668]
[1748705863704,18.68039541,156.63,156.61,33.0851668]
[1748705863885,18.96471855,156.64,156.61,33.0851668]
[1748705866913,18.68039541,156.63,156.61,33.0851668]
[1748705868709,18.68039541,156.62,156.61,33.0851668]
[1748705869103,18.68039541,156.63,156.61,33.0851668]
[1748705869684,18.68039541,156.62,156.61,26.7]
[1748705870090,18.68039541,156.62,156.61,33.08528829]
[1748705870288,18.68039541,156.62,156.61,26.7]
[1748705870803,18.68039541,156.63,156.61,33.08528829]
[1748705874398,18.96471855,156.62,156.61,0.7]
[1748705874906,0.28432314,156.61,156.58,6.3864075]
[1748705875111,0.28432314,156.61,156.57,26.0]
[1748705875112,18.68039541,156.59,156.57,32.38690292]
[1748705875413,18.68039541,156.58,156.55,6.38773554]
[1748705875611,18.68039541,156.56,156.53,6.38855171]
[1748705875917,18.68039541,156.56,156.55,26.0]
[1748705876613,0.28432314,156.55,156.5,6.38977635]
[1748705876789,18.68039541,156.53,156.5,6.38977635]
[1748705876993,18.68039541,156.53,156.5,32.38977635]
[1748705877205,18.68039541,156.53,156.5,6.38977635]
[1748705877402,18.68039541,156.53,156.5,32.38977635]
[1748705877605,18.68039541,156.53,156.47,58.50039541]
[1748705877606,18.68039541,156.51,156.47,25.04065032]
[1748705877808,18.68039541,156.48,156.47,6.39100146]
[1748705878511,18.68039541,156.48,156.45,6.39152202]
[1748705878716,18.68039541,156.47,156.45,32.39152202]
[1748705879690,18.68039541,156.46,156.45,6.39152202]
[1748705880195,18.68039541,156.47,156.45,6.39152202]
[1748705880911,18.68039541,156.46,156.43,8.9307825]
[1748705881103,18.68039541,156.44,156.43,8.9307825]
[1748705881418,18.68039541,156.45,156.43,8.9307825]
[1748705881618,10.56,156.47,156.43,43.56202056]
[1748705881805,10.56,156.47,156.44,18.64964886]
[1748705882913,10.56,156.47,156.45,6.39181847]
[1748705883502,10.56,156.47,156.46,26.0]
[1748705884905,10.56,156.47,156.46,32.39140994]
[1748705885405,10.56,156.53,156.47,18.64964886]
[1748705885719,22.04527298,156.53,156.48,11.48527298]
[1748705886095,22.04527298,156.53,156.47,30.13492184]
[1748705886300,11.48527298,156.52,156.47,18.64964886]
[1748705886510,11.48527298,156.52,156.46,99.67520778]
[1748705886511,11.48527298,156.5,156.46,72.21140994]
[1748705887405,11.48527298,156.51,156.46,72.21140994]
[1748705887720,11.48527298,156.53,156.5,26.0]
[1748705887919,10.56,156.52,156.5,26.0]
[1748705888094,11.48527298,156.51,156.48,26.0]
[1748705888497,22.04527298,156.52,156.48,26.0]
[1748705889430,22.04527298,156.52,156.49,6.39018467]
[1748705890399,11.76959612,156.51,156.48,32.39045836]
[1748705890625,11.48527298,156.49,156.44,25.04187591]
[1748705890805,11.48527298,156.48,156.44,6.39222705]
[1748705891013,11.76959612,156.49,156.44,33.85806765]
[1748705891220,11.76959612,156.49,156.45,26.0]
[1748705891428,10.84432314,156.52,156.47,11.48527298]
[1748705891724,22.04527298,156.52,156.47,11.48527298]
[1748705891900,11.48527298,156.49,156.48,26.0]
[1748705892524,11.48527298,156.49,156.46,32.39140994]
[1748705892821,11.48527298,156.49,156.46,26.0]
[1748705893022,11.48527298,156.48,156.45,6.39167411]
[1748705894327,11.48527298,156.48,156.46,0.6]
[1748705895602,11.48527298,156.48,156.46,6.99131027]
[1748705895802,11.48527298,156.48,156.46,0.6]
[1748705896021,11.48527298,156.47,156.46,0.6]
[1748705897933,11.76959612,156.47,156.46,0.6]
[1748705898601,0.28432314,156.46,156.43,28.53848853]
[1748705898804,11.48527298,156.45,156.43,28.53848853]
[1748705899509,11.48527298,156.45,156.43,34.93103069]
[1748705899707,6.4044,156.47,156.43,34.93103069]
[1748705899907,0.28432314,156.47,156.43,34.93103069]
[1748705900430,11.76959612,156.47,156.44,1.6]
[1748705902539,11.76959612,156.47,156.45,6.39181847]
[1748705903434,11.76959612,156.47,156.44,33.99208586]
[1748705903651,11.48527298,156.46,156.44,6.39208586]
[1748705904020,11.76959612,156.45,156.43,2.53848853]
[1748705904224,11.76959612,156.44,156.43,2.53848853]
[1748705910932,11.48527298,156.45,156.43,8.9311028]
[1748705911179,11.76959612,156.47,156.43,8.9311028]
[1748705911512,11.62743455,156.47,156.43,8.9311028]
[1748705911743,0.14216157,156.46,156.43,8.9311028]
[1748705912840,11.62743455,156.46,156.44,1.3]
[1748705913735,0.28432314,156.44,156.43,2.53848853]
[1748705914039,11.76959612,156.44,156.43,2.53848853]
[1748705915337,0.28432314,156.44,156.43,2.53848853]
[1748705916929,0.14216157,156.44,156.43,2.53848853]
[1748705917229,0.14216157,156.46,156.43,8.93097257]
[1748705917438,10.68216157,156.46,156.43,8.93097257]
[1748705918529,22.16743455,156.46,156.43,8.93097257]
[1748705919137,11.62743455,156.45,156.43,2.53848853]
[1748705919352,11.48527298,156.44,156.43,2.53848853]
[1748705920148,11.62743455,156.45,156.43,8.93106907]
[1748705920928,11.62743455,156.45,156.43,2.53848853]
[1748705925462,11.62743455,156.45,156.43,8.93111947]
[1748705925841,0.14216157,156.45,156.43,2.53848853]
[1748705926039,11.62743455,156.45,156.43,2.53848853]
[1748705926444,0.14216157,156.44,156.43,2.53848853]
[1748705926744,11.76959612,156.44,156.43,2.53848853]
[1748705929061,0.28432314,156.44,156.43,2.53848853]
[1748705930645,11.76959612,156.44,156.43,2.53848853]
[1748705930843,18.16182317,156.44,156.43,2.53848853]
[1748705931183,11.76959612,156.44,156.43,2.53848853]
[1748705931552,18.16182317,156.44,156.43,2.53848853]
[1748705932290,0.28432314,156.44,156.43,2.53848853]
[1748705932475,10.56,156.46,156.43,2.53848853]
[1748705933877,10.56,156.46,156.43,8.93097359]
[1748705934868,11.48527298,156.44,156.43,2.53848853]
[1748705936444,22.04527298,156.44,156.43,2.53848853]
[1748705936651,28.43750003,156.44,156.43,2.53848853]
[1748705937575,22.04527298,156.44,156.43,2.53848853]
[1748705938575,28.43750003,156.44,156.43,2.53848853]
[1748705940374,28.72182317,156.44,156.43,2.53848853]
[1748705940566,35.24762317,156.44,156.43,2.53848853]
[1748705940764,36.78982317,156.44,156.43,2.53848853]
[1748705944480,17.0858,156.44,156.43,2.53848853]
[1748705944685,22.04527298,156.44,156.43,2.53848853]
[1748705944859,22.32959612,156.44,156.43,2.53848853]
[1748705945062,10.56,156.44,156.43,2.53848853]
[1748705945260,92.04,156.48,156.44,18.64964886]
[1748705945460,92.04,156.48,156.44,30.13492184]
[1748705945662,92.04,156.48,156.44,18.64964886]
[1748705945872,103.52527298,156.48,156.44,18.64964886]
[1748705946475,103.52527298,156.48,156.43,102.21798639]
[1748705946476,11.48527298,156.46,156.43,68.35848853]
[1748705946677,0.14216157,156.44,156.43,28.53848853]
[1748705947061,11.62743455,156.44,156.43,2.53848853]
[1748705947289,0.14216157,156.44,156.43,8.93112421]
[1748705947786,0.14216157,156.44,156.43,2.53848853]
[1748705949670,11.76959612,156.44,156.43,2.53848853]
[1748705949880,28.70182317,156.44,156.43,2.53848853]
[1748705950067,22.30959612,156.44,156.43,2.53848853]
[1748705951086,10.82432314,156.44,156.43,2.53848853]
[1748705951271,22.30959612,156.44,156.43,2.53848853]
[1748705951486,22.16743455,156.44,156.43,2.53848853]
[1748705953589,10.68216157,156.44,156.43,2.53848853]
[1748705953889,22.16743455,156.44,156.43,2.53848853]
[1748705954399,10.68216157,156.44,156.43,2.53848853]
[1748705954582,10.68216157,156.44,156.43,8.93112421]
[1748705954583,10.54,156.44,156.43,8.93112421]
[1748705954895,10.54,156.44,156.43,7.93112421]
[1748705957366,10.54,156.44,156.43,26.58077307]
[1748705957669,10.54,156.48,156.43,119.84763525]
[1748705957870,10.54,156.48,156.45,11.48527298]
[1748705958078,10.54,156.48,156.45,18.64964886]
[1748705958284,22.02527298,156.48,156.43,85.21639719]
[1748705958494,22.02527298,156.48,156.44,18.64964886]
[1748705958793,22.02527298,156.48,156.44,25.04156791]
[1748705958990,11.76959612,156.47,156.43,73.73097786]
[1748705959373,11.48527298,156.46,156.43,1.53848853]
[1748705959893,11.48527298,156.46,156.43,7.93099676]
[1748705960093,11.76959612,156.47,156.43,7.93099676]
[1748705960480,0.28432314,156.47,156.43,7.93099676]
[1748705960866,11.76959612,156.47,156.43,7.93099676]
[1748705970986,11.76959612,156.47,156.44,26.0]
[1748705972005,11.76959612,156.47,156.44,32.39218603]
[1748705972498,11.76959612,156.47,156.44,26.0]
[1748705973091,0.14216157,156.45,156.44,26.0]
[1748705974098,0.14216157,156.45,156.43,1.53848853]
[1748705975404,0.14216157,156.45,156.43,7.93103434]
[1748705977993,11.76959612,156.45,156.43,1.53848853]
[1748705978177,11.76959612,156.44,156.43,1.53848853]
[1748705979482,24.82482317,156.44,156.43,1.53848853]
[1748705980284,0.28432314,156.43,156.31,15.99318004]
[1748705980600,0.28432314,156.31,156.21,31.52188144]
[1748705980802,13.96906914,156.22,156.05,72.58101249]
[1748705981106,13.96906914,156.22,155.97,22.00527298]
[1748705981107,2.48379616,156.14,156.06,7.04789932]
[1748705981297,2.48379616,156.09,156.06,7.04789932]
[1748705981497,2.48379616,156.08,156.06,7.04789932]
[1748705981698,24.48906914,156.07,156.06,0.64010745]
[1748705981881,2.48379616,156.03,156.01,6.40984552]
[1748705982083,2.48379616,156.06,156.02,11.48527298]
[1748705982283,10.52,156.05,156.0,7.05066791]
[1748705982501,10.98,156.05,156.02,11.48527298]
[1748705982695,10.98,156.05,156.04,26.0]
[1748705982898,10.98,156.05,156.01,11.48527298]